fUST/lending_fUST_20251031
["ID","MTS","AMOUNT","RATE_DAILY","PERIOD"]
[392734016,1761887439175,-1786.59,0.0003598,10]
[392734019,1761887439184,-1488.82,0.0003598,10]
[392734020,1761887439194,-206.54744412,0.0003598,3]
[392734022,1761887439203,-500.0,0.00035988,4]
[392734025,1761887439212,-500.0,0.00035988,4]
[392734027,1761887439222,-500.0,0.00035988,4]
[392734028,1761887439232,-526.23,0.00035988,4]
[392734031,1761887439244,-500.0,0.00035988,4]
[392734033,1761887439254,-500.0,0.00035989,4]
[392734035,1761887439263,-500.0,0.00035989,4]
[392734037,1761887439273,-500.0,0.00035989,4]
[392734039,1761887439282,-500.0,0.00035989,4]
[392734041,1761887439292,-500.0,0.00035989,4]
[392734043,1761887439302,-627.50257753,0.00035989,4]
[392734045,1761887439311,-500.0,0.00035989,4]
[392734047,1761887439321,-500.0,0.00035989,4]
[392734049,1761887439330,-323.54211553,0.00035989,4]
[392734051,1761887439340,-526.23,0.00035989,4]
[392734053,1761887439350,-526.23,0.00035989,4]
[392734055,1761887439360,-526.23,0.00035989,4]
[392734057,1761887439369,-526.23,0.00035989,4]
[392734059,1761887439379,-526.23,0.00035989,4]
[392734061,1761887439388,-322.412692,0.00035989,15]
[392734063,1761887439398,-500.0,0.00035989,4]
[392734065,1761887439407,-500.0,0.00035989,4]
[392734067,1761887439417,-500.0,0.00035989,4]
[392734069,1761887439428,-453.84869689,0.00035989,4]
[392734071,1761887439438,-500.0,0.00035989,4]
[392734073,1761887439447,-500.0,0.00035989,4]
[392734075,1761887439457,-500.0,0.00035989,4]
[392734077,1761887439466,-500.0,0.00035989,4]
[392734079,1761887439476,-502.51784836,0.00035989,4]
[392734081,1761887439486,-500.0,0.00035989,15]
[392734083,1761887439495,-100000.0,0.0003599,2]
[392734085,1761887439505,-151.0,0.0003599,31]
[392734087,1761887439514,-569.484981,0.00035992,3]
[392734089,1761887439523,-3616.0,0.00036071,2]
[392734091,1761887439532,-318.0,0.00036127,2]
[392734093,1761887439541,-318.0,0.00036173,2]
[392734095,1761887439551,-427.26615717,0.00036233,2]
[392734097,1761887439560,-500.0,0.00036263,15]
[392734098,1761887439569,-318.0,0.00036331,2]
[392734099,1761887439579,-318.0,0.00036418,2]
[392734100,1761887439588,-502.78188751,0.0003643,4]
[392734101,1761887439598,-500.0,0.00036445,4]
[392734102,1761887439607,-526.23,0.00036472,4]
[392734103,1761887439616,-586.98613913,0.00036473,2]
[392734104,1761887439626,-3974.16811174,0.00036473,2]
[392734105,1761887439635,-526.23,0.00036518,4]
[392734106,1761887439645,-2584.72410569,0.00036519,2]
[392734107,1761887439654,-3722.00271219,0.00036519,2]
[392734108,1761887439765,-215.00178641,0.00036519,2]
[392734109,1761887439775,-644.70318086,0.00036519,2]
[392734110,1761887439784,-1006.34137138,0.00036519,2]
[392734111,1761887439794,-194.07395907,0.00036519,2]
[392734112,1761887439803,-500.0,0.00036521,5]
[392734113,1761887439812,-500.0,0.00036521,5]
[392734114,1761887439821,-502.58363596,0.00036521,5]
[392734115,1761887439831,-502.62033552,0.00036521,5]
[392734116,1761887439840,-797.24115974,0.00036521,5]
[392734117,1761887439854,-542.52256306,0.00036521,5]
[392734118,1761887439863,-502.62930809,0.00036521,5]
[392734119,1761887439872,-504.13493179,0.00036521,5]
[392734120,1761887439881,-521.22293429,0.00036521,5]
[392734121,1761887439890,-1000.0,0.00036521,5]
[392734122,1761887439900,-502.47018433,0.00036521,5]
[392734123,1761887439909,-151.0,0.00036521,7]
[392734124,1761887439919,-151.0,0.00036521,7]
[392734125,1761887439929,-151.0,0.00036521,31]
[392734126,1761887439939,-180.337922,0.00036521,31]
[392734127,1761887439947,-151.0,0.00036521,15]
[392734128,1761887439956,-151.0,0.00036521,15]
[392734129,1761887439965,-151.0,0.00036521,15]
[392734130,1761887439975,-274.659128,0.00036521,15]
[392734131,1761887439984,-200.0,0.0003653,10]
[392734132,1761887439994,-353.45764957,0.0003653,4]
[392734133,1761887440003,-152.47865491,0.0003653,15]
[392734134,1761887440012,-500.0,0.0003653,15]
[392734135,1761887440021,-500.0,0.0003653,15]
[392734136,1761887440031,-151.0,0.0003653,2]
[392734137,1761887440040,-500.0,0.0003653,15]
[392734138,1761887440049,-500.0,0.0003653,15]
[392734139,1761887440058,-500.0,0.0003653,15]
[392734140,1761887440068,-500.0,0.0003653,15]
[392734141,1761887440078,-251.62045453,0.0003653,15]
[392734142,1761887440087,-151.0,0.0003653,15]
[392734143,1761887440096,-526.23,0.0003653,4]
[392734144,1761887440115,-151.0,0.0003653,15]
[392734145,1761887440124,-155.56426143,0.0003653,15]
[392734146,1761887440134,-7967.0555312,0.00036531,2]
[392734147,1761887440144,-1207.2335839,0.00036531,2]
[392734148,1761887440153,-151.0,0.00036531,31]
[392734149,1761887440164,-151.0,0.00036531,31]
[392734150,1761887440174,-246.609316,0.00036531,31]
[392734152,1761887440184,-152.958502,0.00036531,2]
[392734153,1761887440194,-152.958502,0.00036531,2]
[392734154,1761887440203,-152.958502,0.00036531,2]
[392734155,1761887440213,-152.958502,0.00036531,2]
[392734157,1761887440223,-151.0,0.00036531,31]
[392734158,1761887440233,-151.0,0.00036531,31]
[392734159,1761887440242,-152.971744,0.00036531,31]
[392734160,1761887440251,-151.0,0.00036531,31]
[392734161,1761887440261,-166787.4277051,0.00036531,4]
[392734162,1761887440281,-1488.82,0.0003598,10]
[392734163,1761887440290,-589.81441732,0.00036531,4]
[392734164,1761887440467,-15.83371591,0.0003653,15]
[392734165,1761887440479,-484.16628409,0.0003653,15]
[392734166,1761887440488,-2679.58126175,0.00036531,4]
[392734177,1761887446298,-499.99999999,0.00035884,15]
[392734178,1761887446311,-336.29298229,0.0003653,15]
[392734179,1761887446357,-163.70701771,0.0003653,15]
[392734180,1761887446371,-151.0,0.0003653,15]
[392734181,1761887446384,-16884.08071232,0.00036531,4]
[392734182,1761887601648,-262.60116279,0.00027389,2]
[392734183,1761887638685,150.0,0.00014094,30]
[392734184,1761887639083,150.0,0.00015376,30]
[392734185,1761887639559,150.0,0.00016657,30]
[392734186,1761887639935,141.76892788,0.00017938,30]
[392734187,1761887639959,8.23107212,0.00017938,30]
[392734188,1761887774803,150.0,0.00014793,30]
[392734189,1761887775277,150.0,0.00016137,30]
[392734190,1761887801401,204.0,0.0002589,2]
[392734191,1761887954788,160.0,0.00028419,2]
[392734192,1761888105789,150.0,0.00012499,30]
[392734202,1761888338859,50000.0,0.00037113,120]
[392734203,1761888349719,301.71604283,0.00037113,120]
[392734204,1761888376323,50000.0,0.00037113,120]
[392734213,1761888506560,1924.51958398,0.0002,20]
[392734214,1761888506937,255.8318949,0.0002,7]
[392734215,1761888507532,290.88548872,0.00015,2]
[392734216,1761888507554,47.52804811,0.00015,2]
[392734218,1761888510174,290.88548872,0.00026,30]
[392734219,1761888510196,7772.13047301,0.00026,30]
[392734220,1761888510218,10000.01,0.00026,30]
[392734221,1761888510239,10000.01,0.00026,30]
[392734222,1761888510260,10000.01,0.00026,30]
[392734223,1761888510282,10000.01,0.00026,30]
[392734224,1761888510303,10000.01,0.00026,30]
[392734225,1761888510324,10000.01,0.00026,30]
[392734226,1761888510344,10000.01,0.00026,30]
[392734227,1761888510365,10000.01,0.00026,30]
[392734228,1761888510386,10000.01,0.00026,30]
[392734229,1761888510410,10000.01,0.00026,30]
[392734230,1761888510431,10000.01,0.00026,30]
[392734231,1761888510454,10000.01,0.00026,30]
[392734232,1761888510475,7590.34333515,0.00026,30]
[392734233,1761888524956,7027.33,0.00030137,120]
[392734359,1761888638288,-500.0,0.00029974,7]
[392734361,1761888638298,-345.80229396,0.00030412,120]
[392734363,1761888638308,-175.446,0.00031038,2]
[392734365,1761888638317,-153.52586,0.00033552,2]
[392734367,1761888638326,-1803.7109461,0.00034199,2]
[392734369,1761888638335,-153.52586,0.00034259,2]
[392734372,1761888638344,-160.0,0.000346,2]
[392734374,1761888638353,-160.0,0.000346,2]
[392734375,1761888638362,-160.0,0.000346,2]
[392734378,1761888638372,-1600.0,0.00034887,3]
[392734380,1761888638381,-184.5889531,0.00034888,60]
[392734382,1761888638390,-375.0,0.00034964,3]
[392734384,1761888638400,-400.0,0.00034964,2]
[392734386,1761888638408,-7479.59872381,0.00034965,2]
[392734388,1761888638420,-8541.4344071,0.00034965,2]
[392734390,1761888638434,-6338.48604256,0.00034965,2]
[392734394,1761888638446,-12850.4346895,0.00034965,2]
[392734396,1761888638455,-153.52586,0.00034965,2]
[392734398,1761888638464,-200.0,0.00035,2]
[392734400,1761888638476,-183.256906,0.00035259,7]
[392734402,1761888638486,-500.89430812,0.00035259,7]
[392734403,1761888638495,-9009.67350974,0.000354,2]
[392734405,1761888638508,-308.0,0.00035474,7]
[392734407,1761888638518,-308.0,0.00035599,7]
[392734409,1761888638527,-153.52586,0.00035672,2]
[392734411,1761888638537,-168.0,0.00035773,2]
[392734414,1761888638547,-308.0,0.00035851,2]
[392734416,1761888638556,-157.344,0.00035883,43]
[392734418,1761888638565,-500.0,0.00035883,4]
[392734420,1761888638576,-500.0,0.00035883,4]
[392734422,1761888638586,-179.70265102,0.00035883,43]
[392734424,1761888638595,-160.0,0.0003591,2]
[392734426,1761888638604,-150.0,0.00035967,30]
[392734428,1761888638613,-300.0,0.00035967,33]
[392734430,1761888638623,-450.0,0.00035972,36]
[392734432,1761888638632,-160.0,0.0003598,2]
[392734434,1761888638641,-600.0,0.00035988,39]
[392734436,1761888638650,-500.0,0.00035989,42]
[392734438,1761888638659,-217.42577738,0.00036045,3]
[392734440,1761888638668,-196.26200379,0.00036045,3]
[392734442,1761888638678,-795.18093839,0.00036045,3]
[392734444,1761888638687,-308.0,0.00036063,7]
[392734446,1761888638696,-313.0,0.00036113,2]
[392734448,1761888638706,-965.61,0.00036263,10]
[392734450,1761888638715,-804.68,0.00036263,10]
[392734452,1761888638724,-292.67791174,0.00036272,15]
[392734454,1761888638733,-18475.89660296,0.00036273,4]
[392734456,1761888638745,-998.80874545,0.00036273,4]
[392734458,1761888638756,-29933.26553872,0.00036273,4]
[392734460,1761888638765,-1579.50855643,0.00036331,2]
[392734462,1761888638774,-500.0,0.00036336,4]
[392734464,1761888638785,-500.0,0.00036351,2]
[392734466,1761888638794,-151.0,0.00036351,2]
[392734468,1761888638804,-151.0,0.00036351,2]
[392734471,1761888638813,-151.0,0.00036351,2]
[392734473,1761888638822,-151.0,0.00036351,2]
[392734475,1761888638831,-151.0,0.00036351,2]
[392734476,1761888638840,-151.0,0.00036351,2]
[392734479,1761888638850,-151.0,0.00036351,2]
[392734481,1761888638859,-164.0603681,0.00036351,2]
[392734482,1761888638869,-151.0,0.00036351,2]
[392734484,1761888638878,-151.0,0.00036351,2]
[392734486,1761888638887,-151.0,0.00036351,2]
[392734489,1761888638897,-151.0,0.00036351,2]
[392734491,1761888638906,-151.0,0.00036351,2]
[392734492,1761888638915,-151.0,0.00036351,2]
[392734494,1761888638924,-151.0,0.00036351,2]
[392734496,1761888638933,-151.0,0.00036351,2]
[392734498,1761888638942,-151.0,0.00036351,2]
[392734499,1761888638951,-151.0,0.00036351,2]
[392734500,1761888638960,-151.0,0.00036351,2]
[392734501,1761888638969,-151.0,0.00036351,2]
[392734502,1761888638978,-151.0,0.00036351,2]
[392734503,1761888638988,-151.0,0.00036351,2]
[392734504,1761888638997,-742.14,0.00036362,10]
[392734505,1761888639006,-619.64233242,0.00036363,3]
[392734506,1761888639015,-191.9,0.00036363,3]
[392734507,1761888639024,-575.7,0.00036363,3]
[392734509,1761888639033,-1158.73,0.00036363,10]
[392734510,1761888639043,-500.0,0.00036372,4]
[392734511,1761888639052,-500.0,0.00036372,4]
[392734512,1761888639061,-500.0,0.00036372,4]
[392734513,1761888639071,-500.0,0.00036372,4]
[392734514,1761888639080,-500.0,0.00036372,4]
[392734515,1761888639089,-500.0,0.00036372,4]
[392734516,1761888639098,-500.0,0.00036372,4]
[392734517,1761888639107,-500.0,0.00036372,4]
[392734518,1761888639116,-500.0,0.00036372,4]
[392734519,1761888639125,-500.0,0.00036372,4]
[392734520,1761888639134,-341.10043088,0.00036372,4]
[392734521,1761888639144,-685000.0,0.00036373,2]
[392734522,1761888639153,-1579.50855643,0.00036387,2]
[392734523,1761888639162,-800.0,0.00036431,7]
[392734524,1761888639171,-800.0,0.00036435,7]
[392734525,1761888639180,-1579.50855643,0.00036443,2]
[392734526,1761888639189,-800.0,0.00036477,7]
[392734527,1761888639198,-800.0,0.00036481,7]
[392734528,1761888639207,-800.0,0.00036489,7]
[392734529,1761888639215,-1579.50855643,0.00036499,2]
[392734530,1761888639225,-403.89093407,0.00036503,2]
[392734531,1761888639234,-5446.0605957,0.00036514,2]
[392734532,1761888639243,-258.5853217,0.00036514,2]
[392734533,1761888639253,-37159.2599747,0.00036514,2]
[392734534,1761888639262,-151.0,0.00036514,31]
[392734535,1761888639271,-151.0,0.00036514,31]
[392734536,1761888639280,-151.0,0.00036514,7]
[392734537,1761888639289,-154.120135,0.00036514,31]
[392734538,1761888639298,-153.302129,0.00036514,31]
[392734539,1761888639307,-2174.346715,0.00036514,2]
[392734540,1761888639316,-765.5249233,0.00036514,2]
[392734542,1761888639326,-151.0,0.00036514,31]
[392734543,1761888639336,-151.0,0.00036514,31]
[392734544,1761888639345,-151.0,0.00036514,31]
[392734545,1761888639354,-151.0,0.00036514,2]
[392734546,1761888639363,-151.0,0.00036514,2]
[392734547,1761888639372,-151.0,0.00036514,2]
[392734548,1761888639383,-182.336041,0.00036514,2]
[392734549,1761888639393,-151.0,0.00036514,31]
[392734550,1761888639402,-151.0,0.00036514,31]
[392734551,1761888639412,-216.90933596,0.00036526,2]
[392734552,1761888639422,-245.71632733,0.00036526,2]
[392734553,1761888639431,-383.54782968,0.00036526,2]
[392734554,1761888639440,-313.53305491,0.00036526,2]
[392734555,1761888639450,-221.79881036,0.00036526,2]
[392734556,1761888639460,-346.21408055,0.00036526,2]
[392734557,1761888639470,-275.6442848,0.00036526,2]
[392734558,1761888639479,-151.0,0.00036526,31]
[392734559,1761888639489,-151.0,0.00036526,31]
[392734560,1761888639502,-151.0,0.00036526,31]
[392734561,1761888639512,-151.0,0.00036526,31]
[392734562,1761888639521,-151.0,0.00036526,31]
[392734563,1761888639531,-158.815693,0.00036526,31]
[392734564,1761888639540,-151.0,0.00036526,31]
[392734565,1761888639549,-260.0,0.00036528,2]
[392734566,1761888639559,-800.0,0.0003653,7]
[392734567,1761888639568,-500.0,0.0003653,15]
[392734568,1761888639579,-500.0,0.0003653,15]
[392734569,1761888639590,-162.36718836,0.0003653,15]
[392734570,1761888639599,-151.0,0.0003653,15]
[392734571,1761888639609,-151.0,0.0003653,2]
[392734572,1761888639618,-151.0,0.0003653,15]
[392734573,1761888639627,-500.0,0.0003653,15]
[392734574,1761888639718,-500.0,0.0003653,15]
[392734575,1761888639728,-500.0,0.0003653,15]
[392734576,1761888639738,-151.0,0.00036533,15]
[392734577,1761888639748,-151.0,0.00036533,15]
[392734578,1761888639757,-151.0,0.00036533,15]
[392734579,1761888639767,-151.0,0.00036533,15]
[392734580,1761888639776,-203.1070673,0.0003654,7]
[392734581,1761888639786,-500.0,0.0003654,7]
[392734582,1761888639795,-800.0,0.00036545,7]
[392734583,1761888639804,-800.0,0.00036552,7]
[392734584,1761888639814,-1579.50855643,0.00036555,2]
[392734585,1761888639824,-800.0,0.00036556,7]
[392734586,1761888639833,-800.0,0.00036558,7]
[392734587,1761888639842,-200.0,0.00036568,10]
[392734588,1761888639852,-500.0,0.00036573,5]
[392734589,1761888639861,-500.0,0.00036573,5]
[392734590,1761888639870,-500.0,0.00036573,5]
[392734591,1761888639880,-503.70123366,0.00036573,5]
[392734592,1761888639889,-500.0,0.00036573,5]
[392734593,1761888639898,-353.37776186,0.00036573,5]
[392734594,1761888639907,-500.0,0.00036573,5]
[392734595,1761888639916,-500.82674948,0.00036573,5]
[392734596,1761888639925,-500.0,0.00036573,5]
[392734597,1761888639934,-500.0,0.00036573,5]
[392734598,1761888639943,-500.0,0.00036573,5]
[392734599,1761888639952,-503.287223,0.00036573,5]
[392734600,1761888639961,-500.0,0.00036573,5]
[392734601,1761888639971,-500.0,0.00036573,5]
[392734602,1761888639980,-500.0,0.00036573,5]
[392734603,1761888639989,-800.0,0.00036584,7]
[392734604,1761888639998,-500.0,0.00036585,15]
[392734605,1761888640007,-500.0,0.00036585,15]
[392734607,1761888640016,-151.0,0.00036585,15]
[392734610,1761888640025,-151.0,0.00036585,15]
[392734612,1761888640035,-500.0,0.00036585,15]
[392734614,1761888640044,-500.0,0.00036585,15]
[392734616,1761888640053,-554.45310158,0.00036585,15]
[392734618,1761888640062,-506.8475286,0.00036595,7]
[392734619,1761888640070,-5106.2,0.000366,60]
[392734620,1761888640079,-331.0,0.00036602,14]
[392734621,1761888640088,-346.54126626,0.00036602,14]
[392734622,1761888640097,-202.04,0.00036605,2]
[392734623,1761888640106,-800.0,0.00036605,7]
[392734624,1761888640115,-800.0,0.00036606,7]
[392734625,1761888640124,-800.0,0.00036622,7]
[392734626,1761888640133,-500.0,0.00036625,2]
[392734627,1761888640142,-924.05660398,0.00036633,7]
[392734628,1761888640151,-500.0,0.0003664,15]
[392734629,1761888640160,-468.67702078,0.0003664,15]
[392734630,1761888640168,-201.62281038,0.0003664,15]
[392734631,1761888640177,-219.13741064,0.0003664,15]
[392734632,1761888640186,-500.0,0.0003664,15]
[392734633,1761888640195,-500.0,0.0003664,15]
[392734634,1761888640204,-318.0,0.00036642,7]
[392734635,1761888640212,-800.0,0.00036643,7]
[392734636,1761888640221,-151.0,0.00036655,2]
[392734637,1761888640230,-151.0,0.00036655,2]
[392734638,1761888640239,-151.0,0.00036655,2]
[392734639,1761888640248,-151.0,0.00036655,31]
[392734640,1761888640257,-321.0,0.00036665,2]
[392734641,1761888640265,-151.0,0.0003667,15]
[392734642,1761888640274,-151.0,0.0003667,15]
[392734643,1761888640283,-151.0,0.0003667,15]
[392734644,1761888640291,-151.0,0.0003667,15]
[392734645,1761888640300,-151.0,0.0003667,31]
[392734646,1761888640309,-151.0,0.0003667,31]
[392734647,1761888640318,-151.0,0.0003667,31]
[392734648,1761888640327,-151.0,0.0003667,31]
[392734649,1761888640336,-151.0,0.0003667,31]
[392734650,1761888640346,-151.0,0.0003667,31]
[392734651,1761888640355,-800.0,0.00036681,7]
[392734652,1761888640363,-800.0,0.00036682,7]
[392734653,1761888640373,-800.0,0.00036694,7]
[392734654,1761888640382,-500.0,0.00036694,15]
[392734655,1761888640391,-156.97537285,0.00036694,15]
[392734656,1761888640400,-500.0,0.00036694,15]
[392734657,1761888640409,-501.97225389,0.00036706,13]
[392734658,1761888640418,-503.27819796,0.00036707,13]
[392734659,1761888640427,-300.0,0.00036709,30]
[392734660,1761888640437,-300.0,0.00036709,30]
[392734661,1761888640446,-300.0,0.00036709,30]
[392734662,1761888640456,-300.0,0.00036709,30]
[392734663,1761888640465,-300.0,0.00036709,30]
[392734664,1761888640474,-300.0,0.00036709,30]
[392734666,1761888640484,-300.0,0.00036709,30]
[392734667,1761888640493,-300.0,0.00036709,30]
[392734668,1761888640506,-300.0,0.00036709,30]
[392734669,1761888640516,-300.0,0.00036709,30]
[392734670,1761888640526,-300.0,0.00036709,30]
[392734671,1761888640536,-300.0,0.00036709,30]
[392734672,1761888640546,-300.0,0.00036709,30]
[392734673,1761888640555,-300.0,0.00036709,30]
[392734674,1761888640565,-300.0,0.00036709,30]
[392734675,1761888640577,-151.0,0.00036717,31]
[392734676,1761888640586,-151.0,0.00036717,31]
[392734677,1761888640595,-151.0,0.00036739,7]
[392734678,1761888640605,-500.0,0.00036749,15]
[392734679,1761888640614,-160.69183962,0.00036749,15]
[392734680,1761888640623,-151.0,0.000368,14]
[392734681,1761888640632,-151.0,0.000368,31]
[392734682,1761888640641,-500.0,0.00036804,15]
[392734683,1761888640651,-318.0,0.00036841,2]
[392734684,1761888640660,-500.0,0.00036859,15]
[392734685,1761888640670,-168.0,0.00036897,2]
[392734686,1761888640679,-500.0,0.00036899,2]
[392734687,1761888640688,-151.0,0.000369,12]
[392734688,1761888640700,-151.0,0.000369,16]
[392734689,1761888640709,-336.70409084,0.00036914,15]
[392734690,1761888640719,-319.0,0.00036967,120]
[392734691,1761888640728,-15336.96581201,0.0003699,2]
[392734692,1761888640737,-500.0,0.0003699,30]
[392734693,1761888640746,-500.0,0.0003699,30]
[392734694,1761888640756,-800.0,0.0003699,30]
[392734695,1761888640765,-151.0,0.00037,16]
[392734696,1761888640774,-151.0,0.00037,16]
[392734697,1761888640784,-151.0,0.00037,15]
[392734698,1761888640793,-151.0,0.00037004,31]
[392734699,1761888640803,-151.0,0.00037004,31]
[392734700,1761888640813,-151.0,0.00037004,15]
[392734701,1761888640822,-151.0,0.00037004,15]
[392734702,1761888640831,-151.0,0.00037004,15]
[392734703,1761888640840,-282.229606,0.00037004,15]
[392734704,1761888640850,-151.0,0.00037004,31]
[392734705,1761888640859,-151.0,0.00037004,31]
[392734706,1761888640868,-151.0,0.00037004,31]
[392734707,1761888640877,-151.0,0.00037004,31]
[392734708,1761888640886,-151.0,0.00037004,31]
[392734709,1761888640895,-2000.0,0.00037006,14]
[392734710,1761888640904,-156.45623794,0.00037007,50]
[392734711,1761888640913,-4594.62095522,0.00037013,2]
[392734712,1761888640922,-151.0,0.00037013,2]
[392734713,1761888640931,-151.0,0.00037013,2]
[392734714,1761888640940,-151.0,0.00037013,2]
[392734715,1761888640949,-151.0,0.00037013,31]
[392734716,1761888640958,-200.0,0.0003702,50]
[392734717,1761888640967,-2330.8372672,0.0003705,120]
[392734718,1761888640976,-200.0,0.0003706,10]
[392734719,1761888640985,-500.0,0.00037073,5]
[392734720,1761888640994,-502.41748216,0.00037073,5]
[392734721,1761888641006,-502.20858306,0.00037073,5]
[392734723,1761888641015,-389.97452903,0.00037073,5]
[392734724,1761888641024,-500.0,0.00037073,5]
[392734725,1761888641033,-500.0,0.00037073,5]
[392734726,1761888641041,-500.0,0.00037073,5]
[392734727,1761888641050,-509.97068194,0.00037073,5]
[392734728,1761888641059,-500.0,0.00037073,5]
[392734729,1761888641068,-151.0,0.00037073,7]
[392734730,1761888641079,-360.0,0.00037076,2]
[392734731,1761888641088,-14475.35,0.000371,14]
[392734733,1761888641097,-746.9,0.000371,14]
[392734734,1761888641107,-1916.14,0.000371,2]
[392734735,1761888641116,-191.61,0.000371,2]
[392734737,1761888641125,-151.0,0.000371,19]
[392734738,1761888641134,-151.0,0.00037104,31]
[392734739,1761888641143,-151.0,0.00037104,31]
[392734740,1761888641152,-151.0,0.00037104,7]
[392734741,1761888641161,-151.0,0.00037104,15]
[392734742,1761888641170,-151.0,0.00037104,15]
[392734743,1761888641179,-151.0,0.00037104,15]
[392734744,1761888641188,-151.0,0.00037104,15]
[392734745,1761888641197,-151.0,0.00037104,15]
[392734746,1761888641206,-151.0,0.00037104,15]
[392734747,1761888641215,-216766.30133142,0.00037113,20]
[392734762,1761888646748,-297.83838829,0.00035258,2]
[392734763,1761888646758,-297.83838829,0.00035258,2]
[392734764,1761888646767,-30332.81268544,0.00036287,2]
[392734765,1761888646776,-30332.81268544,0.0003665,2]
[392734766,1761888646785,-3513.42529868,0.00037113,20]
[392734767,1761888646796,-1739.25910767,0.00037113,20]
[392734768,1761888725457,150.0,0.0002589,2]
[392734770,1761888830745,-177.0,0.0002789,2]
[392734771,1761889023728,600000.0023,0.00037112,50]
[392734772,1761889038780,150.0,0.0002589,2]
[392734773,1761889296178,-177.0,0.0002789,2]
[392734774,1761889296205,-253.02700912,0.00029874,2]
[392734775,1761889296233,-205.86720572,0.00029874,2]
[392734776,1761889296261,-204.0,0.0002989,2]
[392734777,1761889296379,-576.6798464,0.00029933,7]
[392734778,1761889296612,-9928.06255818,0.00031463,2]
[392734779,1761889299074,-622.26448748,0.00031463,2]
[392734780,1761889299099,-8755.48102504,0.00031463,2]
[392734781,1761889352498,150.0,0.0002589,2]
[392734782,1761889383522,150.0,0.00012465,30]
[392734783,1761889560770,322.16672,0.00013699,2]
[392734784,1761889561048,322.16672,0.00020187,2]
[392734785,1761889561463,-249.04319226,0.00026676,2]
[392734786,1761889561895,-73.12352774,0.00026676,2]
[392734787,1761889572511,-161.68885014,0.0002789,2]
[392734789,1761889664896,152.28414074,0.0002589,2]
[392734802,1761889832520,-160.0,0.0003183,2]
[392734803,1761889832529,-322.16672,0.00033165,2]
[392734804,1761889832539,-170.11034956,0.00034961,3]
[392734805,1761889832580,-129.88965044,0.00034961,3]
[392734806,1761889832590,-300.0,0.00034961,3]
[392734807,1761889832599,-340.0,0.00034961,2]
[392734808,1761889832608,-1360.0,0.00034962,3]
[392734810,1761889832617,-500.0,0.00034963,4]
[392734812,1761889832626,-500.0,0.00034963,4]
[392734814,1761889832635,-500.0,0.00034963,2]
[392734816,1761889832644,-320.0,0.00034963,3]
[392734818,1761889832653,-157.345,0.00034964,40]
[392734819,1761889832662,-34973.69760153,0.00034964,2]
[392734821,1761889832671,-500.0,0.00034995,4]
[392734823,1761889832680,-500.0,0.00034995,4]
[392734825,1761889832690,-500.0,0.00034995,2]
[392734827,1761889832699,-157.0,0.00035,120]
[392734829,1761889832708,-161.68885014,0.00035999,10]
[392734831,1761889832718,-169.09,0.00036,30]
[392734833,1761889832727,-420.80465445,0.00036286,3]
[392734835,1761889832736,-2366.14279836,0.000364,14]
[392734837,1761889832747,-1636.55986331,0.000364,14]